Cogmind - Beta 14 @@@ ROGUE MODE // 2024.10.10 @ 20:54:31 Player: Schrodingersyndrome Result: Self-destructed Performance ------------- Evolutions (2) 1000 Regions Visited (3) 600 Robots Destroyed (25) 125 Value Destroyed (603) 603 Prototype IDs (2) 40 Alien Tech Used (0) 0 Bonus (0) 0 TOTAL SCORE: 2368 Bonus ------- None Cogmind --------- Core Integrity 473/550 Matter 300/300 Energy 43/240 System Corruption 0% Temperature Hot (215) Movement Hovering (47) Location -8/Materials Parts ------- > --- POWER (1) -------- Nuclear Core > --- PROPULSION (4) --- Compact Wheel Improved Airjet Improved Airjet Improved Airjet > --- UTILITY (4) ------ Small Storage Unit Visual Processing Unit Sensor Array Improved Signal Interpreter > --- WEAPON (2) ------- Improved Medium Laser > --- INVENTORY (8) ---- Light Nuclear Core Improved Hover Unit Advanced Weight Redist. System Advanced Weight Redist. System Improved Shield Generator Improved Medium Laser Ion Cannon Rocket Launcher Peak State ------------ > --- POWER ------------ Nuclear Core > --- PROPULSION ------- Compact Wheel Improved Airjet Improved Airjet Improved Airjet > --- UTILITY ---------- Small Storage Unit Visual Processing Unit Sensor Array Improved Signal Interpreter > --- WEAPON ----------- Improved Medium Laser EM Pulse Cannon > --- INVENTORY -------- Ion Engine Improved Hover Unit Advanced Weight Redist. System Improved Shield Generator Improved Medium Laser Heavy Particle Cannon Ion Cannon Rocket Launcher [Rating: 34] Favorites ----------- Power Nuclear Core Engine Light Ion Engine Power Core Nuclear Core Propulsion Wheel Leg Improved Carbon-fiber Leg Wheel Wheel Hover Unit Improved Airjet Utility Small Storage Unit Device Sensor Array Storage Small Storage Unit Processor Visual Processing Unit Weapon Improved Medium Laser Energy Gun Improved Medium Laser Energy Cannon EM Pulse Cannon Ballistic Gun Assault Rifle Build | -11 -10 -9 -8 ------- Run | Yrd Mat Mat Mat Slots Evolved 4 | . . 2 2 Power . | . . . . Propulsion 2 | . . 1 1 Utility 2 | . . 1 1 Weapon . | . . . . Parts Attached 28 | 7 . 5 16 Power 2 | 1 . . 1 Engine 1 | 1 . . . Core 1 | . . . 1 Reactor . | . . . . Propulsion 15 | 2 . 2 11 Treads . | . . . . Leg 4 | . . . 4 Wheel 7 | 2 . 2 3 Hover 4 | . . . 4 Flight . | . . . . Utility 6 | 2 . 1 3 Device 2 | 1 . . 1 Storage 1 | 1 . . . Processor 3 | . . 1 2 Hackware . | . . . . Protection . | . . . . Artifact . | . . . . Weapon 5 | 2 . 2 1 Energy Gun 3 | 1 . 2 . Energy Cannon 1 | . . . 1 Ballistic Gun 1 | 1 . . . Ballistic Cannon . | . . . . Launcher . | . . . . Special Weapon . | . . . . Impact Weapon . | . . . . Slashing Weapon . | . . . . Piercing Weapon . | . . . . Special Melee Weapon . | . . . . Unidentified Prototypes 2 | . . 1 1 Parts Lost 2 | . . 1 1 Power . | . . . . Propulsion . | . . . . Utility 1 | . . 1 . Weapon 1 | . . . 1 Highest Loss Streak 1 | . . 1 1 To Critical Strikes . | . . . . Average Slot Usage (%) 98 | . 100 97 98 Engine 3 | . 14 11 . Core 6 | . . . 8 Wheel 21 | . 28 33 18 Hover 11 | . . . 15 Device 9 | . 14 8 9 Storage 9 | . 14 11 9 Processor 15 | . . 11 18 Energy Gun 13 | . 14 20 11 Energy Cannon 4 | . . . 6 Ballistic Gun 1 | . 14 1 . Peak Build Rating 34 | 8 8 15 34 Average Rating 20 | 5 7 13 27 On Entrance 7 | . 8 8 14 Naked Turns . | . . . . Heaviest Build 22 | 13 13 15 22 Greatest Support 72 | 20 20 42 72 Greatest Overweight (x) 2 | 2 . . 2 Average Overweight (x) . | . . . . Largest Inventory Capacity 8 | 8 8 8 8 Average Capacity 7 | 7 8 8 8 Most Carried 8 | 8 8 8 8 Average Carried 6 | 5 7 7 6 Final Capacity 8 | 8 8 8 8 Final Carried 8 | 8 8 8 8 Class Distribution -------------------- 35% | Scout 30% | Mutant 25% | Scavenger-Skirmisher 8% | Scavenger-Mutant Dominant Class ---------------- Mutant | -10/Materials Scavenger-Mutant | -9/Materials Scout | -8/Materials Resources | -11 -10 -9 -8 ----------- Run | Yrd Mat Mat Mat Matter Collected 549 | 324 12 53 160 Remotely . | . . . . Salvage Created 935 | 302 18 200 415 Parts 63 | 23 3 13 24 Haulers Intercepted . | . . . . Recyclers Shooed . | . . . . Parts Field Recycled . | . . . . Retrieved Matter . | . . . . Parts Self-Destructed . | . . . . Prevented . | . . . . Kills | -11 -10 -9 -8 ------- Run | Yrd Mat Mat Mat Combat Hostiles Destroyed 11 | . . 3 8 Guns 4 | . . 3 1 Cannons 6 | . . . 6 Classes Destroyed 7 | 3 1 1 2 Worker 2 | 2 . . . Tunneler 8 | 8 . . . Recycler 1 | 1 . . . Watcher 3 | . 1 1 1 Swarmer 1 | . . . 1 Grunt 6 | . . . 6 Sentry 4 | . . 3 1 Best Kill Streak 4 | 4 1 2 3 Combat Bots Only 3 | . . 2 3 Max Kills in Single Turn 1 | 1 1 1 1 Gunslinging . | . . . . Exploded . | . . . . Melee . | . . . . Uniques/NPCs Destroyed . | . . . . Combat | -11 -10 -9 -8 -------- Run | Yrd Mat Mat Mat Hostile Shots Fired 60 | . . 10 50 Missed 19 | . . 2 17 Damage Taken 517 | . . 122 395 Core 123 | . . 46 77 Absorbed by Shields . | . . . . Core Remaining (%) 96 | 100 100 88 . Volleys Fired 61 | 18 4 9 30 Largest 2 | 2 2 2 1 Hottest 112 | 70 70 112 63 Shots Fired 87 | 31 8 18 30 Gun 60 | 31 8 18 3 Cannon 27 | . . . 27 Launcher . | . . . . Special . | . . . . Kinetic 23 | 18 4 1 . Thermal 37 | 13 4 17 3 Explosive . | . . . . Electromagnetic 27 | . . . 27 Robot Hit Streak 14 | 6 2 8 14 Robot Miss Streak 6 | 2 6 4 1 Penetration Max . | . . . . Secondary Targets . | . . . . Shots Hit Robots 59 | 21 2 11 25 Core Hits 34 | 12 1 7 14 Critical Kills . | . . . . Critical Parts Destroyed . | . . . . Critical Strikes 5 | 1 . 1 3 Burn 3 | 1 . 1 1 Corrupt 2 | . . . 2 Melee Attacks . | . . . . Impact . | . . . . Slashing . | . . . . Piercing . | . . . . Sneak Attacks . | . . . . Combat Hostiles . | . . . . Follow-up Attacks . | . . . . Damage Inflicted 1238 | 288 27 183 740 Guns 548 | 288 27 183 50 Cannons 640 | . . . 640 Explosions 50 | . . . 50 Melee . | . . . . Ramming . | . . . . Kinetic 179 | 164 15 . . Thermal 419 | 124 12 183 100 Explosive . | . . . . Electromagnetic 640 | . . . 640 Impact . | . . . . Slashing . | . . . . Piercing . | . . . . Highest Corruption . | . . . . Average Corruption . | . . . . Corruption Purged . | . . . . Corruption Blocked . | . . . . Overload Shots . | . . . . Overflow Damage 4 | . . . 4 Projectiles 4 | . . . 4 Explosions . | . . . . Melee . | . . . . Knockbacks . | . . . . Impact . | . . . . Kinetic . | . . . . Secondary . | . . . . Self-Inflicted Damage 27 | . . . 27 Shots 1 | . . . 1 Rammed . | . . . . Targets Rammed . | . . . . Kicked . | . . . . Crushed . | . . . . Highest Temperature 215 | 36 18 93 215 Average Temperature 55 | 12 8 36 92 Received Heat Transfer 189 | . . 36 153 Siege Activations . | . . . . Robots Corrupted 1 | . . . 1 Combat Hostiles 1 | . . . 1 Parts Fried 7 | . . . 7 Impact Corruptions . | . . . . Robots Melted . | . . . . Combat Hostiles . | . . . . Parts Melted 3 | 1 . 1 1 Heat Transferred 1247 | 444 37 481 285 Parts Sabotaged . | . . . . Parts Stolen . | . . . . Parts Stripped . | . . . . Power Chain Reactions 1 | . . . 1 Alert | -11 -10 -9 -8 ------- Run | Yrd Mat Mat Mat Peak Influence 203 | 55 87 203 176 Initial 85 | . 35 36 85 Average 66 | 31 54 93 72 Maximum Alert Level 1 | . . 1 . Low Security (%) 99 | 100 100 92 100 Level 1 . | . . 7 . Level 2 . | . . . . Level 3 . | . . . . Level 4 . | . . . . Level 5 . | . . . . High Security . | . . . . Max Security . | . . . . Squads Dispatched 2 | . . . 2 Investigation 1 | . . . 1 Extermination . | . . . . Reinforcement 1 | . . . 1 Assault . | . . . . Garrison . | . . . . Intercept . | . . . . Searches Triggered . | . . . . Construction Impeded . | . . . . Haulers Reinforced . | . . . . Active Scanning Responses . | . . . . Cargo Convoy Interrupts . | . . . . Stealth | -11 -10 -9 -8 --------- Run | Yrd Mat Mat Mat Distress Signals . | . . . . Communications Jammed . | . . . . Distress Signals . | . . . . Times Spotted 23 | . 2 6 15 Peak Tracking Total 6 | . 1 3 6 Tactical Retreats 1 | . . . 1 Traps | -11 -10 -9 -8 ------- Run | Yrd Mat Mat Mat Traps Triggered . | . . . . Indirectly . | . . . . Trap Hack Attempts . | . . . . Triggered . | . . . . Disarmed . | . . . . Reprogrammed . | . . . . Reused . | . . . . Traps Extracted . | . . . . Installed . | . . . . Triggered . | . . . . Machines | -11 -10 -9 -8 ---------- Run | Yrd Mat Mat Mat Machines Disabled 1 | . . 1 . Max in Single Turn 1 | . . 1 . Machines Repaired . | . . . . Machines Dismantled . | . . . . Machines Sabotaged . | . . . . Overloaded Fab Kills . | . . . . Hacking | -11 -10 -9 -8 --------- Run | Yrd Mat Mat Mat Machines Accessed 6 | . . 2 4 Terminals 4 | . . 2 2 Fabricators . | . . . . Repair Stations 1 | . . . 1 Recycling Units . | . . . . Scanalyzers 1 | . . . 1 Garrison Access . | . . . . Total Hacks 21 | . . 8 13 Successful 9 | . . 4 5 Failed 12 | . . 4 8 Catastrophic 2 | . . 1 1 Database Lockouts . | . . . . Manual 12 | . 1 6 5 Terminals 13 | . . 8 5 Fabricators . | . . . . Repair Stations 2 | . . . 2 Recycling Units . | . . . . Scanalyzers 6 | . . . 6 Garrison Access . | . . . . Terminal Hacks 2 | . . 2 . Record 1 | . . 1 . Zone Layout 1 | . . 1 . Fabricator Hacks . | . . . . Repair Station Hacks 1 | . . . 1 Scan Component 1 | . . . 1 Recycling Unit Hacks . | . . . . Scanalyzer 4 | . . . 4 Insert Component 2 | . . . 2 Analyze 2 | . . . 2 Garrison Access Hacks . | . . . . Unauthorized Hacks 2 | . . 2 . Terminals 2 | . . 2 . Botnet 2 | . . 2 . Fabricators . | . . . . Repair Stations . | . . . . Recycling Units . | . . . . Scanalyzers . | . . . . Garrison Access . | . . . . Data Cores Recovered . | . . . . Used . | . . . . Hacking Detections 7 | . 1 2 4 Full Trace Events 2 | . . 1 1 Feedback Events . | . . . . Feedback Blocked . | . . . . Robot Schematics Acquired . | . . . . Robots Built . | . . . . Authchips . | . . . . Time . | . . . . Total Robot Build Rating . | . . . . Part Schematics Acquired 2 | . . . 2 Parts Built . | . . . . Authchips . | . . . . Time . | . . . . Total Part Build Rating . | . . . . Parts Repaired . | . . . . Time . | . . . . Parts Recycled . | . . . . Recycled Matter . | . . . . Retrieved Matter . | . . . . Retrieved Components . | . . . . Parts Scanalyzed 2 | . . . 2 Part Schematics Acquired 2 | . . . 2 Parts Damaged . | . . . . Bothacking | -11 -10 -9 -8 ------------ Run | Yrd Mat Mat Mat Used RIF Installer . | . . . . Robots Hacked . | . . . . Non-combat . | . . . . Combat . | . . . . Robot Hacks Applied . | . . . . Relay Couplers Released . | . . . . Fabnet Peak Effective % . | . . . . Robots Rewired . | . . . . Allies Hacked . | . . . . Hacks Repelled . | . . . . Allies | -11 -10 -9 -8 -------- Run | Yrd Mat Mat Mat Total Allies . | . . . . Largest Group . | . . . . Highest-Rated Group . | . . . . Highest-Rated Ally . | . . . . Total Orders . | . . . . Ally Attacks . | . . . . Total Damage . | . . . . Kills . | . . . . Allies Corrupted . | . . . . Allies Melted . | . . . . Intel | -11 -10 -9 -8 ------- Run | Yrd Mat Mat Mat Robot Analysis Total . | . . . . Derelict Logs Recovered . | . . . . Drone Launches . | . . . . Drone Recoveries . | . . . . Exploration | -11 -10 -9 -8 ------------- Run | Yrd Mat Mat Mat Turns Passed 1483 | 263 127 183 910 Spaces Moved 762 | 98 114 131 419 Core 17 | 17 . . . Treads . | . . . . Legs 6 | . . . 6 Wheels 423 | 81 114 131 97 Hover 316 | . . . 316 Flight . | . . . . Fastest Speed 42 | 50 80 86 42 Average Speed 69 | 79 80 91 58 Slowest Speed 190 | 150 80 93 190 Overloaded Moves . | . . . . Propulsion Burnouts . | . . . . Robots Hopped . | . . . . Cave-ins Triggered . | . . . . Exploration Rate (%) 17 | 4 22 14 29 Regions Visited 3 Branch Regions . Pre-discovered Areas . | . . . . Known Exits Taken . | . . . . Unknown Exits Taken 3 | 1 1 1 . Scrap Searched . | . . . . Spaces Dug . | . . . . Terrain Destroyed 4 | . . . 4 Melee . | . . . . Projectile . | . . . . AOE 4 | . . . 4 Terrain Rammed . | . . . . Walls Destroyed . | . . . . Machines Disabled . | . . . . Actions | -11 -10 -9 -8 --------- Run | Yrd Mat Mat Mat Total 1624 | 248 142 176 1058 Wait 726 | 117 21 24 564 Move 759 | 97 113 130 419 Hop . | . . . . Pick Up 27 | 9 2 5 11 Fast Attach 15 | 6 . . 9 Attach 8 | 1 . 2 5 Detach 1 | . . . 1 Swap 5 | . . 3 2 Drop 22 | . 2 3 17 Fire 61 | 18 4 9 30 Melee . | . . . . Ram . | . . . . Kick . | . . . . Crush . | . . . . Escape Stasis . | . . . . Rewire . | . . . . Trap . | . . . . Miscellaneous . | . . . . Route ------- -11/Scrapyard -10/Materials -9/Materials -8/Materials History --------- Turn | Location | Event 3 | -11/Scrapyard | Discovered new exit (range 14) 264 | -11/Scrapyard | Entered Materials 305 | -10/Materials | Build established: Mutant 354 | -10/Materials | Discovered new exit (range 12) 391 | -10/Materials | Entered another Materials area 391 | -9/Materials | Evolved 2 slots: Propulsion x1, Utility x1 524 | -9/Materials | Discovered new exit (range 9) 574 | -9/Materials | Entered another Materials area 574 | -8/Materials | Evolved 2 slots: Propulsion x1, Utility x1 873 | -8/Materials | Build established: Scavenger-Skirmisher 1264 | -8/Materials | Build established: Scout 1484 | -8/Materials | Self-destructed Last Messages --------------- Dropped Ion Engine. Acquired Lgt. Nuclear Core. Connecting with Repair Station... >>Scan(Corrupted Imp. Hover Unit) Scanning Corrupted Imp. Hover Unit... Ready to Repair: Corrupted Imp. Hover Unit Rating: 2 Time: 44 O-16 Technician: "IFF HANDSHAKE FAILED. SECURING TERMINAL." Critical hit (Burn: +37). O-16 Technician uses terminal to summon reinforcements. ALERT: Hostiles spotted, dispatching reinforcements to Terminal M008. O-16 Technician locks terminal. Destroyed Hover Unit. Chain reaction triggered in Lgt. Ion Engine. Critical hit (Burn: +37). S-10 Pest IFF system glitched. S-10 Pest destroyed. EM Pulse Cannon destroyed. Map ----- +----------------------------------------------------+ | ????????????????????????????????????? | | ????????????????????????????????????? | | ????????????????????????????????????? | | ????????????????????????????????????? | | ????????????????????????????????????? | | ????????????????????????????????????? | | ????????????????????????????????????? | | ????????????????????????????????????? | | ????????????????????????????????????? | | ?????????? ????????????????????????? | | ?????????? ????????????????????????? | | ?????????? ????????????????????????? | | #########? ????????????????????????? | | #? #????????????????????????? | | """ [#? #????????????????????????? | | """"" #? #???######+###???????????? | | """" #? #??# #???????????? | | !## #??# """ #???????????? | | ## #??# "Y" #???????????? | | ####+##### #??# #???????????? | | [ #??# """ """ #???????????? | | #??# """ """ #???????????? | | ### #??# """ """ #???######??? | | # ] """ ##?# ### "T" #??? | | # """ #######+###;;;# #??? | | ^+ """ s@so #??? | | # s ;;# Y #?? | | # | #######+##m%### !!##?? | | ## ###???? # =#??? ! #??? | | ## #?????"" # #???#+####??? | | ## ! #??? "R? # ???????????? | | ## !! #??? "?? # ??????????? | | #########?????? ####?#?????????? | | #?????????????? #??????????????? | | ###?????????????? #??????????????? | | ?????????????????" ! #??????????????? | | ????????????????"" #??????????????? | | ????????????????"" #??????????????? | | ????????????????? #??????????????? | | ?????????????????#####??????????????? | | ????????????????????????????????????? | | ????????????????????????????????????? | | ????????????????????????????????????? | | ????????????????????????????????????? | | | | | | | | | | | | | +----------------------------------------------------+ Best States ------------- Heat Dissipation 31 Energy Generation 14 Energy Capacity 240 Matter Stores 300 Matter Capacity 300 Sight Range 18 Robot Scan Range 14 Terrain Scan Density 10 Evasion (%) 56 Item Schematics ----------------- Imp. Hover Unit | -8/Materials | Scanalyzed Imp. Airjet | -8/Materials | Scanalyzed Robot Schematics ------------------ None Fabricated ------------ Nothing Alien Tech Used ----------------- None Achievements -------------- None Challenges ------------ None Game ------ Seed FireExperimentalField Manual? 0 Play Time 00:30:34 Cumulative 5.5 hours Start 2024.10.10 @ 20:25:03 End 2024.10.10 @ 20:54:31 Sessions 1 Manual Loads 0 Difficulty Rogue Special Mode None Game No. 9 Rogue 9 Adventurer 0 Explorer 0 Win Type - Total 0 Types 0/0/0/0/0/0/0/0/0 Lore% 4 Gallery% 9 Achievement% 12 Wizard Run 0 Options --------- Layout 0 ASCII 0 Keyboard 0 Movement Mouse Keybinds 0 Fullscreen 2 Font 24/Smallcaps Map View 76x50 Zoom Use 0% Tactical HUD 0 Map Filters NONE Filters NONE Steam 1 RUN: 5863ebf3-7286-4a17-9571-d23f6f6378b3